fUSD/lending_fUSD_20250221
["ID","MTS","AMOUNT","RATE_DAILY","PERIOD"]
[353998171,1740177062774,-540.29931912,0.00013123,2]
[353998172,1740177062783,-500.0,0.00013123,2]
[353998173,1740177062792,-500.0,0.00013123,2]
[353998174,1740177062801,-500.0,0.00013123,2]
[353998175,1740177062811,-500.0,0.00013123,2]
[353998176,1740177062820,-500.0,0.00013123,2]
[353998177,1740177062830,-500.0,0.00013123,2]
[353998178,1740177062839,-500.0,0.00013123,2]
[353998179,1740177062849,-500.0,0.00013123,2]
[353998180,1740177062858,-500.0,0.00013123,2]
[353998181,1740177062867,-500.0,0.00013123,2]
[353998182,1740177062876,-500.0,0.00013123,2]
[353998183,1740177062885,-500.0,0.00013123,2]
[353998184,1740177062895,-500.0,0.00013123,2]
[353998185,1740177062905,-500.0,0.00013123,2]
[353998186,1740177062914,-500.0,0.00013123,2]
[353998187,1740177062925,-500.0,0.00013123,2]
[353998188,1740177062934,-500.0,0.00013123,2]
[353998189,1740177062943,-500.0,0.00013123,2]
[353998190,1740177062953,-500.0,0.00013123,2]
[353998191,1740177062962,-500.0,0.00013123,2]
[353998192,1740177062971,-500.0,0.00013123,2]
[353998193,1740177062980,-500.0,0.00013123,2]
[353998194,1740177062989,-500.0,0.00013123,2]
[353998195,1740177063000,-502.05199991,0.00013123,2]
[353998196,1740177063010,-500.0,0.00013123,2]
[353998197,1740177063019,-500.0,0.00013123,2]
[353998198,1740177063028,-500.0,0.00013123,2]
[353998199,1740177063039,-500.0,0.00013123,2]
[353998200,1740177063049,-500.0,0.00013123,2]
[353998201,1740177063060,-500.0,0.00013123,2]
[353998202,1740177063070,-500.0,0.00013123,2]
[353998203,1740177063082,-500.0,0.00013123,2]
[353998204,1740177063092,-500.0,0.00013123,2]
[353998205,1740177063102,-500.0,0.00013123,2]
[353998206,1740177063113,-500.0,0.00013123,2]
[353998207,1740177063122,-500.0,0.00013123,2]
[353998208,1740177063132,-500.0,0.00013123,2]
[353998209,1740177063142,-500.0,0.00013123,2]
[353998210,1740177063151,-500.0,0.00013123,2]
[353998211,1740177063161,-511.66902209,0.00013123,2]
[353998212,1740177063170,-500.0,0.00013123,2]
[353998213,1740177063181,-502.69779652,0.00013123,2]
[353998214,1740177063191,-500.0,0.00013123,2]
[353998215,1740177063201,-500.0,0.00013123,2]
[353998216,1740177063211,-500.0,0.00013123,2]
[353998217,1740177063221,-500.0,0.00013123,2]
[353998218,1740177063231,-500.0,0.00013123,2]
[353998219,1740177063240,-151.0,0.00013123,2]
[353998220,1740177063249,-500.0,0.00013123,2]
[353998221,1740177063259,-500.0,0.00013123,2]
[353998222,1740177063268,-500.0,0.00013123,2]
[353998223,1740177063277,-500.0,0.00013123,2]
[353998224,1740177063287,-500.0,0.00013123,2]
[353998225,1740177063297,-500.0,0.00013123,2]
[353998226,1740177063306,-500.0,0.00013123,2]
[353998227,1740177063315,-500.0,0.00013123,2]
[353998228,1740177063325,-500.0,0.00013123,2]
[353998229,1740177063336,-500.0,0.00013123,2]
[353998230,1740177063345,-500.0,0.00013123,2]
[353998231,1740177063355,-500.0,0.00013123,2]
[353998232,1740177063364,-500.0,0.00013123,2]
[353998233,1740177063373,-500.0,0.00013123,2]
[353998234,1740177063383,-500.0,0.00013123,2]
[353998235,1740177063393,-500.0,0.00013123,2]
[353998236,1740177063402,-500.0,0.00013123,2]
[353998237,1740177063412,-500.0,0.00013123,2]
[353998238,1740177063421,-500.0,0.00013123,2]
[353998239,1740177063431,-500.0,0.00013123,2]
[353998240,1740177063440,-500.0,0.00013123,2]
[353998241,1740177063450,-500.0,0.00013123,2]
[353998242,1740177063459,-500.0,0.00013123,2]
[353998243,1740177063468,-500.0,0.00013123,2]
[353998244,1740177063477,-500.0,0.00013123,2]
[353998245,1740177063487,-500.0,0.00013123,2]
[353998246,1740177063496,-500.0,0.00013123,2]
[353998247,1740177063506,-500.0,0.00013123,2]
[353998248,1740177063516,-500.0,0.00013123,2]
[353998249,1740177063525,-500.0,0.00013123,2]
[353998250,1740177063534,-500.0,0.00013123,2]
[353998251,1740177063543,-500.0,0.00013123,2]
[353998252,1740177063553,-151.0,0.00013123,2]
[353998253,1740177063564,-500.82356971,0.00013123,2]
[353998254,1740177063574,-500.0,0.00013123,2]
[353998255,1740177063585,-500.78219175,0.00013123,2]
[353998256,1740177063594,-961.02803623,0.00013123,2]
[353998257,1740177063603,-177.538389,0.00013124,2]
[353998258,1740177063613,-201.048177,0.00013124,2]
[353998259,1740177063622,-170.004919,0.00013124,2]
[353998260,1740177063632,-151.115483,0.00013124,2]
[353998261,1740177063641,-150.0,0.00013127,2]
[353998262,1740177063651,-150.0,0.00013128,2]
[353998263,1740177063660,-292.22154674,0.00013135,2]
[353998264,1740177063669,-500.0,0.00013143,2]
[353998265,1740177063679,-2000.0,0.00013143,2]
[353998266,1740177063688,-200.0,0.00013143,2]
[353998267,1740177063697,-500.0,0.00013158,2]
[353998268,1740177063706,-500.0,0.00013158,2]
[353998269,1740177063716,-500.0,0.00013158,2]
[353998270,1740177063726,-500.0,0.00013158,2]
[353998271,1740177063737,-625.88,0.00013158,2]
[353998272,1740177063747,-500.0,0.00013158,2]
[353998273,1740177063758,-166.8,0.00013158,2]
[353998274,1740177063768,-500.0,0.00013158,2]
[353998275,1740177063779,-500.0,0.00013158,2]
[353998276,1740177063790,-500.0,0.00013158,2]
[353998277,1740177063801,-500.0,0.00013158,2]
[353998278,1740177063811,-500.0,0.00013158,2]
[353998279,1740177063821,-500.0,0.00013158,2]
[353998280,1740177063835,-500.0,0.00013158,2]
[353998281,1740177063845,-280.45,0.00013158,2]
[353998282,1740177063859,-500.0,0.00013158,2]
[353998283,1740177063869,-500.0,0.00013158,2]
[353998284,1740177063879,-610.63,0.00013158,2]
[353998285,1740177063889,-495.01,0.00013158,2]
[353998286,1740177063899,-500.0,0.00013158,2]
[353998287,1740177063910,-608.13,0.00013158,2]
[353998288,1740177063920,-482.35,0.00013158,2]
[353998289,1740177063931,-500.0,0.00013158,2]
[353998290,1740177063940,-918.92,0.00013158,2]
[353998291,1740177063949,-151.0,0.00013158,2]
[353998292,1740177063960,-500.0,0.00013158,2]
[353998293,1740177063970,-567.79,0.00013158,2]
[353998294,1740177063980,-500.0,0.00013158,2]
[353998295,1740177063991,-170.25,0.00013158,2]
[353998296,1740177064003,-500.0,0.00013158,2]
[353998297,1740177064013,-500.0,0.00013158,2]
[353998298,1740177064023,-551.93,0.00013168,2]
[353998299,1740177064032,-500.0,0.00013168,2]
[353998300,1740177064042,-500.0,0.00013168,2]
[353998301,1740177064052,-500.0,0.00013168,2]
[353998302,1740177064061,-500.0,0.00013168,2]
[353998303,1740177064071,-575.14,0.00013168,2]
[353998304,1740177064085,-243.48760557,0.0001319,2]
[353998305,1740177064095,-150.0,0.00013195,2]
[353998306,1740177064105,-96905.83696223,0.000132,2]
[353998307,1740177064114,-150.0,0.000132,2]
[353998308,1740177064125,-151.0,0.000132,2]
[353998309,1740177064135,-151.0,0.000132,2]
[353998310,1740177064144,-1298.36,0.00013204,2]
[353998311,1740177064155,-500.0,0.00013205,2]
[353998312,1740177064165,-500.0,0.00013205,2]
[353998313,1740177064175,-500.0,0.00013205,2]
[353998314,1740177064184,-500.0,0.00013205,2]
[353998315,1740177064194,-500.0,0.00013205,2]
[353998316,1740177064204,-500.0,0.00013205,2]
[353998317,1740177064214,-500.0,0.00013205,2]
[353998318,1740177064224,-500.0,0.00013205,2]
[353998319,1740177064234,-500.0,0.00013205,2]
[353998320,1740177064243,-607.61293689,0.00013205,2]
[353998321,1740177064252,-500.0,0.00013205,2]
[353998322,1740177064262,-500.0,0.00013205,2]
[353998323,1740177064273,-500.0,0.00013205,2]
[353998324,1740177064282,-500.0,0.00013205,2]
[353998325,1740177064292,-500.0,0.00013205,2]
[353998326,1740177064302,-500.0,0.00013205,2]
[353998327,1740177064312,-500.0,0.00013205,2]
[353998328,1740177064323,-500.0,0.00013205,2]
[353998329,1740177064335,-204.88669787,0.00013205,2]
[353998330,1740177064346,-500.0,0.00013205,2]
[353998331,1740177064357,-500.0,0.00013205,2]
[353998332,1740177064367,-500.0,0.00013205,2]
[353998333,1740177064378,-500.0,0.00013205,2]
[353998334,1740177064388,-500.0,0.00013205,2]
[353998335,1740177064398,-392.35558385,0.00013205,2]
[353998336,1740177064409,-500.0,0.00013205,2]
[353998337,1740177064419,-500.0,0.00013205,2]
[353998338,1740177064429,-500.0,0.00013205,2]
[353998339,1740177064439,-500.0,0.00013205,2]
[353998340,1740177064451,-500.0,0.00013205,2]
[353998341,1740177064461,-511.88097281,0.00013205,2]
[353998342,1740177064471,-500.0,0.00013205,2]
[353998343,1740177064480,-500.0,0.00013205,2]
[353998344,1740177064490,-500.0,0.00013205,2]
[353998345,1740177064500,-500.0,0.00013205,2]
[353998346,1740177064510,-500.0,0.00013205,2]
[353998347,1740177064520,-500.0,0.00013205,2]
[353998348,1740177064531,-614.20483664,0.00013205,2]
[353998349,1740177064542,-500.0,0.00013205,2]
[353998350,1740177064553,-500.0,0.00013205,2]
[353998351,1740177064564,-500.0,0.00013205,2]
[353998352,1740177064576,-500.0,0.00013205,2]
[353998353,1740177064588,-500.0,0.00013205,2]
[353998354,1740177064598,-500.0,0.00013205,2]
[353998355,1740177064608,-500.0,0.00013205,2]
[353998356,1740177064617,-500.0,0.00013205,2]
[353998357,1740177064627,-500.0,0.00013205,2]
[353998358,1740177064637,-500.0,0.00013205,2]
[353998359,1740177064647,-500.0,0.00013205,2]
[353998360,1740177064657,-500.0,0.00013205,2]
[353998361,1740177064667,-567.07016017,0.00013205,2]
[353998362,1740177064677,-518.69485605,0.00013205,2]
[353998363,1740177064686,-500.0,0.00013205,2]
[353998364,1740177064696,-500.0,0.00013205,2]
[353998365,1740177064706,-500.0,0.00013205,2]
[353998366,1740177064716,-500.0,0.00013205,2]
[353998367,1740177064726,-500.0,0.00013205,2]
[353998368,1740177064736,-500.0,0.00013205,2]
[353998369,1740177064745,-500.0,0.00013205,2]
[353998370,1740177064755,-546.22,0.00013205,2]
[353998371,1740177064765,-500.0,0.00013205,2]
[353998372,1740177064774,-500.0,0.00013205,2]
[353998373,1740177064784,-500.0,0.00013205,2]
[353998374,1740177064793,-500.0,0.00013205,2]
[353998375,1740177064803,-500.0,0.00013205,2]
[353998376,1740177064813,-500.0,0.00013205,2]
[353998377,1740177064823,-500.0,0.00013205,2]
[353998378,1740177064834,-500.0,0.00013205,2]
[353998379,1740177064844,-500.0,0.00013205,2]
[353998380,1740177064854,-500.0,0.00013205,2]
[353998381,1740177064863,-500.0,0.00013205,2]
[353998382,1740177064873,-500.0,0.00013205,2]
[353998383,1740177064883,-500.0,0.00013205,2]
[353998384,1740177064893,-500.0,0.00013205,2]
[353998385,1740177064904,-500.0,0.00013205,2]
[353998386,1740177064914,-500.0,0.00013205,2]
[353998387,1740177064924,-500.0,0.00013205,2]
[353998388,1740177064933,-500.0,0.00013205,2]
[353998389,1740177064943,-500.0,0.00013205,2]
[353998390,1740177064953,-500.0,0.00013205,2]
[353998391,1740177064962,-500.0,0.00013205,2]
[353998392,1740177064972,-500.0,0.00013205,2]
[353998393,1740177064982,-500.0,0.00013205,2]
[353998394,1740177064993,-500.0,0.00013205,2]
[353998395,1740177065006,-537.6,0.00013205,2]
[353998396,1740177065016,-500.0,0.00013205,2]
[353998397,1740177065026,-500.0,0.00013205,2]
[353998398,1740177065037,-500.0,0.00013205,2]
[353998399,1740177065048,-500.0,0.00013205,2]
[353998400,1740177065058,-500.0,0.00013205,2]
[353998401,1740177065068,-500.0,0.00013205,2]
[353998402,1740177065079,-500.0,0.00013205,2]
[353998403,1740177065091,-500.0,0.00013205,2]
[353998404,1740177065101,-517.42,0.00013205,2]
[353998405,1740177065110,-500.0,0.00013205,2]
[353998406,1740177065120,-500.0,0.00013205,2]
[353998407,1740177065130,-500.0,0.00013205,2]
[353998408,1740177065140,-500.0,0.00013205,2]
[353998409,1740177065149,-500.0,0.00013205,2]
[353998410,1740177065159,-500.0,0.00013205,2]
[353998411,1740177065169,-500.0,0.00013205,2]
[353998412,1740177065179,-500.0,0.00013205,2]
[353998413,1740177065188,-513.35898575,0.00013205,2]
[353998414,1740177065199,-500.0,0.00013205,2]
[353998415,1740177065209,-500.0,0.00013205,2]
[353998416,1740177065218,-500.0,0.00013205,2]
[353998417,1740177065228,-643.37,0.00013205,2]
[353998418,1740177065237,-500.0,0.00013205,2]
[353998419,1740177065246,-500.0,0.00013205,2]
[353998420,1740177065255,-500.0,0.00013205,2]
[353998421,1740177065266,-548.04,0.00013205,2]
[353998422,1740177065275,-500.0,0.00013205,2]
[353998423,1740177065285,-500.0,0.00013205,2]
[353998424,1740177065294,-500.0,0.00013205,2]
[353998425,1740177065304,-553.05,0.00013205,2]
[353998426,1740177065313,-500.0,0.00013205,2]
[353998427,1740177065322,-500.0,0.00013205,2]
[353998428,1740177065332,-500.0,0.00013205,2]
[353998429,1740177065342,-500.0,0.00013205,2]
[353998430,1740177065352,-500.0,0.00013205,2]
[353998431,1740177065362,-500.0,0.00013205,2]
[353998432,1740177065372,-500.0,0.00013205,2]
[353998433,1740177065381,-500.0,0.00013205,2]
[353998434,1740177065391,-500.0,0.00013205,2]
[353998435,1740177065400,-500.0,0.00013205,2]
[353998436,1740177065410,-500.0,0.00013205,2]
[353998437,1740177065420,-505.07218259,0.00013205,2]
[353998438,1740177065429,-500.0,0.00013205,2]
[353998439,1740177065588,-500.0,0.00013205,2]
[353998440,1740177065606,-501.70128136,0.00013205,2]
[353998441,1740177065617,-502.68106475,0.00013205,2]
[353998442,1740177065627,-500.0,0.00013205,2]
[353998443,1740177065636,-500.0,0.00013205,2]
[353998444,1740177065646,-500.0,0.00013205,2]
[353998445,1740177065656,-500.0,0.00013205,2]
[353998446,1740177065666,-500.0,0.00013205,2]
[353998447,1740177065676,-500.0,0.00013205,2]
[353998448,1740177065685,-500.0,0.00013205,2]
[353998449,1740177065695,-500.0,0.00013205,2]
[353998450,1740177065705,-500.0,0.00013205,2]
[353998451,1740177065714,-592.54,0.00013205,2]
[353998452,1740177065724,-500.0,0.00013205,2]
[353998453,1740177065733,-500.0,0.00013205,2]
[353998454,1740177065743,-500.0,0.00013205,2]
[353998455,1740177065753,-500.0,0.00013205,2]
[353998456,1740177065763,-502.23,0.00013205,2]
[353998457,1740177065773,-546.84,0.00013205,2]
[353998458,1740177065783,-500.0,0.00013205,2]
[353998459,1740177065793,-500.0,0.00013205,2]
[353998460,1740177065803,-611.05334042,0.00013205,2]
[353998461,1740177065813,-500.0,0.00013205,2]
[353998462,1740177065822,-391.82950082,0.00013205,2]
[353998463,1740177065833,-500.0,0.00013205,2]
[353998464,1740177065843,-500.0,0.00013205,2]
[353998465,1740177065853,-500.0,0.00013205,2]
[353998466,1740177065864,-500.0,0.00013205,2]
[353998467,1740177065874,-500.0,0.00013205,2]
[353998468,1740177065884,-183.78,0.00013205,2]
[353998469,1740177065893,-500.0,0.00013205,2]
[353998470,1740177065902,-500.0,0.00013205,2]
[353998471,1740177065912,-500.0,0.00013205,2]
[353998472,1740177065922,-594.83760305,0.00013205,2]
[353998473,1740177065931,-500.0,0.00013205,2]
[353998474,1740177065942,-500.0,0.00013205,2]
[353998475,1740177065951,-500.0,0.00013205,2]
[353998476,1740177065961,-508.75,0.00013205,2]
[353998477,1740177065971,-501.27,0.00013205,2]
[353998478,1740177065981,-500.0,0.00013205,2]
[353998479,1740177065992,-500.0,0.00013205,2]
[353998480,1740177066004,-502.86289988,0.00013205,2]
[353998481,1740177066014,-500.0,0.00013205,2]
[353998482,1740177066023,-609.27305369,0.00013205,2]
[353998483,1740177066033,-500.0,0.00013205,2]
[353998484,1740177066043,-559.03884912,0.00013205,2]
[353998485,1740177066054,-500.0,0.00013205,2]
[353998486,1740177066064,-600.66217711,0.00013205,2]
[353998487,1740177066075,-530.29455458,0.00013205,2]
[353998488,1740177066086,-505.15809215,0.00013205,2]
[353998489,1740177066096,-515.51357568,0.00013205,2]
[353998490,1740177066105,-500.0,0.00013205,2]
[353998491,1740177066115,-500.0,0.00013205,2]
[353998492,1740177066124,-500.0,0.00013205,2]
[353998493,1740177066134,-500.0,0.00013205,2]
[353998494,1740177066143,-500.0,0.00013205,2]
[353998495,1740177066152,-500.0,0.00013205,2]
[353998496,1740177066161,-647.77339195,0.00013205,2]
[353998497,1740177066171,-500.0,0.00013205,2]
[353998498,1740177066181,-500.0,0.00013205,2]
[353998499,1740177066191,-500.0,0.00013205,2]
[353998500,1740177066200,-500.0,0.00013205,2]
[353998501,1740177066210,-617.35982,0.00013205,2]
[353998502,1740177066220,-500.0,0.00013205,2]
[353998503,1740177066229,-500.0,0.00013205,2]
[353998504,1740177066239,-500.0,0.00013205,2]
[353998505,1740177066249,-500.0,0.00013205,2]
[353998506,1740177066259,-181.317275,0.00013205,2]
[353998507,1740177066268,-504.52704445,0.00013205,2]
[353998508,1740177066278,-500.0,0.00013205,2]
[353998509,1740177066288,-500.0,0.00013205,2]
[353998510,1740177066297,-500.0,0.00013205,2]
[353998511,1740177066306,-500.0,0.00013205,2]
[353998512,1740177066316,-500.0,0.00013205,2]
[353998513,1740177066326,-631.76,0.00013205,2]
[353998514,1740177066336,-500.0,0.00013205,2]
[353998515,1740177066346,-589.32981889,0.00013205,2]
[353998516,1740177066356,-500.0,0.00013205,2]
[353998517,1740177066366,-500.0,0.00013205,2]
[353998518,1740177066376,-500.0,0.00013205,2]
[353998519,1740177066386,-500.0,0.00013205,2]
[353998520,1740177066397,-336.29515814,0.00013205,2]
[353998521,1740177066407,-500.0,0.00013205,2]
[353998522,1740177066417,-500.0,0.00013205,2]
[353998523,1740177066427,-500.0,0.00013205,2]
[353998524,1740177066437,-500.0,0.00013205,2]
[353998525,1740177066447,-508.08497455,0.00013205,2]
[353998526,1740177066459,-500.0,0.00013205,2]
[353998527,1740177066468,-500.0,0.00013205,2]
[353998528,1740177066478,-151.0,0.00013205,2]
[353998529,1740177066488,-523.38676433,0.00013205,2]
[353998530,1740177066498,-961.02803623,0.00013205,2]
[353998531,1740177066508,-1060.0,0.0001321,2]
[353998532,1740177066519,-150.0,0.00013221,2]
[353998533,1740177066528,-150.0,0.00013222,2]
[353998534,1740177066538,-150.0,0.00013223,2]
[353998535,1740177066548,-150.0,0.00013227,2]
[353998536,1740177066557,-150.0,0.00013231,2]
[353998537,1740177066568,-150.0,0.00013232,2]
[353998538,1740177066578,-150.0,0.00013238,2]
[353998539,1740177066589,-150.0,0.0001324,2]
[353998540,1740177066598,-500.0,0.00013241,2]
[353998541,1740177066608,-541.74,0.00013241,2]
[353998542,1740177066618,-500.0,0.00013241,2]
[353998543,1740177066628,-500.0,0.00013241,2]
[353998544,1740177066638,-229.0,0.00013241,2]
[353998545,1740177066647,-466.04,0.00013241,2]
[353998546,1740177066657,-500.0,0.00013241,2]
[353998547,1740177066667,-500.0,0.00013241,2]
[353998548,1740177066677,-467.83,0.00013241,2]
[353998549,1740177066686,-500.0,0.00013241,2]
[353998550,1740177066696,-181.35,0.00013241,2]
[353998551,1740177066706,-500.0,0.00013241,2]
[353998552,1740177066716,-500.0,0.00013241,2]
[353998553,1740177066725,-500.0,0.00013241,2]
[353998554,1740177066735,-610.63,0.00013241,2]
[353998555,1740177066744,-500.0,0.00013241,2]
[353998556,1740177066754,-608.13,0.00013241,2]
[353998557,1740177066764,-500.0,0.00013241,2]
[353998558,1740177066774,-918.92,0.00013241,2]
[353998559,1740177066783,-500.0,0.00013241,2]
[353998560,1740177066793,-567.79,0.00013241,2]
[353998561,1740177066803,-500.0,0.00013241,2]
[353998562,1740177066812,-500.0,0.00013241,2]
[353998563,1740177066822,-500.0,0.00013241,2]
[353998564,1740177066832,-150.0,0.00013248,2]
[353998565,1740177066842,-551.93,0.0001325,2]
[353998566,1740177066852,-500.0,0.0001325,2]
[353998567,1740177066861,-500.0,0.0001325,2]
[353998568,1740177066871,-500.0,0.0001325,2]
[353998569,1740177066881,-500.0,0.0001325,2]
[353998570,1740177066891,-575.14,0.0001325,2]
[353998571,1740177066901,-150.0,0.00013254,2]
[353998572,1740177066911,-150.0,0.00013256,2]
[353998573,1740177066922,-151.0,0.00013259,2]
[353998574,1740177066932,-151.0,0.00013259,2]
[353998575,1740177066942,-151.0,0.00013259,2]
[353998576,1740177066951,-961.02803623,0.0001326,2]
[353998577,1740177066961,-150.0,0.00013265,2]
[353998578,1740177066971,-150.0,0.00013269,2]
[353998579,1740177066980,-381.76279429,0.0001327,2]
[353998580,1740177066990,-292.22154674,0.0001327,2]
[353998581,1740177067001,-206.95446846,0.0001327,2]
[353998582,1740177067012,-12907.63338946,0.0001327,2]
[353998583,1740177067022,-184.88216334,0.0001327,2]
[353998584,1740177067031,-608.25429135,0.0001327,2]
[353998585,1740177067042,-150.0,0.0001328,2]
[353998586,1740177067053,-150.0,0.0001328,2]
[353998587,1740177067063,-500.0,0.00013287,2]
[353998588,1740177067073,-500.0,0.00013287,2]
[353998589,1740177067085,-500.0,0.00013287,2]
[353998590,1740177067096,-500.0,0.00013287,2]
[353998591,1740177067105,-500.0,0.00013287,2]
[353998592,1740177067115,-500.0,0.00013287,2]
[353998593,1740177067125,-500.0,0.00013287,2]
[353998594,1740177067134,-518.56,0.00013287,2]
[353998595,1740177067144,-500.0,0.00013287,2]
[353998596,1740177067155,-500.0,0.00013287,2]
[353998597,1740177067165,-395.23080499,0.00013287,2]
[353998598,1740177067174,-500.0,0.00013287,2]
[353998599,1740177067184,-623.02,0.00013287,2]
[353998600,1740177067193,-600.7,0.00013287,2]
[353998601,1740177067203,-500.0,0.00013287,2]
[353998602,1740177067213,-500.0,0.00013287,2]
[353998603,1740177067223,-500.0,0.00013287,2]
[353998604,1740177067232,-500.0,0.00013287,2]
[353998605,1740177067242,-581.83,0.00013287,2]
[353998606,1740177067252,-599.13346202,0.00013287,2]
[353998607,1740177067261,-545.36,0.00013287,2]
[353998608,1740177067271,-500.0,0.00013287,2]
[353998609,1740177067280,-500.0,0.00013287,2]
[353998610,1740177067289,-500.0,0.00013287,2]
[353998611,1740177067299,-562.17,0.00013287,2]
[353998612,1740177067309,-429.95,0.00013287,2]
[353998613,1740177067318,-500.0,0.00013287,2]
[353998614,1740177067328,-500.0,0.00013287,2]
[353998615,1740177067340,-437.00485794,0.00013287,2]
[353998616,1740177067350,-217.42,0.00013287,2]
[353998617,1740177067359,-262.46,0.00013287,2]
[353998618,1740177067369,-500.0,0.00013287,2]
[353998619,1740177067379,-203.18,0.00013287,2]
[353998620,1740177067388,-237.96,0.00013287,2]
[353998621,1740177067398,-500.0,0.00013287,2]
[353998622,1740177067408,-500.0,0.00013287,2]
[353998623,1740177067417,-500.0,0.00013287,2]
[353998624,1740177067426,-500.0,0.00013287,2]
[353998625,1740177067435,-513.23048515,0.00013287,2]
[353998626,1740177067445,-512.35794756,0.00013287,2]
[353998627,1740177067454,-500.0,0.00013287,2]
[353998628,1740177067464,-500.0,0.00013287,2]
[353998629,1740177067473,-500.0,0.00013287,2]
[353998630,1740177067483,-592.97,0.00013287,2]
[353998631,1740177067492,-500.0,0.00013287,2]
[353998632,1740177067501,-188.01,0.00013287,2]
[353998633,1740177067510,-508.27,0.00013287,2]
[353998634,1740177067520,-500.0,0.00013287,2]
[353998635,1740177067529,-154.75,0.00013287,2]
[353998636,1740177067541,-191.64,0.00013287,2]
[353998637,1740177067550,-500.0,0.00013287,2]
[353998638,1740177067560,-176.58,0.00013287,2]
[353998639,1740177067571,-539.57370286,0.00013287,2]
[353998640,1740177067581,-536.35,0.00013287,2]
[353998641,1740177067591,-416.85,0.00013287,2]
[353998642,1740177067601,-174.72,0.00013287,2]
[353998643,1740177067610,-500.0,0.00013287,2]
[353998644,1740177067619,-150.0,0.00013289,2]
[353998645,1740177067628,-150.0,0.00013293,2]
[353998646,1740177067638,-150.0,0.00013295,2]
[353998647,1740177067647,-1251.27324316,0.00013298,2]
[353998648,1740177067656,-150.0,0.00013312,2]
[353998649,1740177067666,-961.02803623,0.00013315,2]
[353998650,1740177067675,-150.0,0.00013316,2]
[353998651,1740177067683,-150.0,0.00013318,2]
[353998652,1740177067693,-500.0,0.00013323,2]
[353998653,1740177067702,-500.0,0.00013323,2]
[353998654,1740177067711,-500.0,0.00013323,2]
[353998655,1740177067720,-500.0,0.00013323,2]
[353998656,1740177067730,-500.0,0.00013323,2]
[353998657,1740177067738,-500.0,0.00013323,2]
[353998658,1740177067748,-500.0,0.00013323,2]
[353998659,1740177067757,-500.0,0.00013323,2]
[353998660,1740177067766,-500.0,0.00013323,2]
[353998661,1740177067779,-610.63,0.00013323,2]
[353998662,1740177067787,-490.14259025,0.00013323,2]
[353998663,1740177067797,-608.13,0.00013323,2]
[353998664,1740177067806,-500.0,0.00013323,2]
[353998665,1740177067815,-918.92,0.00013323,2]
[353998666,1740177067824,-151.0,0.00013323,2]
[353998667,1740177067834,-500.0,0.00013323,2]
[353998668,1740177067843,-567.79,0.00013323,2]
[353998669,1740177067852,-500.0,0.00013323,2]
[353998670,1740177067862,-500.0,0.00013323,2]